[Event "Schack-SM 2024: Veteran-SM 65+"]
[Site "Fortnox Arena, Hejaregatan 5, Vaxjo, Sweden"]
[Date "2024.07.03"]
[Round "5.2"]
[White "Magnussen, Pal"]
[Black "Hedin, Gunnar"]
[Result "1/2-1/2"]
[TimeControl "90 minutes for 40 moves + 30 minutes for the rest of the game + 30 seconds per move from move one."]
[WhiteElo "1905"]
[BlackElo "2064"]

1. e4 {[%clk 01:30:56]} {[%emt 00:00:04]} e6 {[%clk 01:30:05]} {[%emt
00:00:55]} 2. Qe2 {[%clk 01:31:00]} {[%emt 00:00:25]} c5 {[%clk 01:29:38]}
{[%emt 00:00:58]} 3. Nf3 {[%clk 01:28:43]} {[%emt 00:02:47]} Nc6 {[%clk
01:29:11]} {[%emt 00:00:58]} 4. g3 {[%clk 01:28:30]} {[%emt 00:00:43]} e5
{[%clk 01:19:17]} {[%emt 00:10:25]} 5. Bg2 {[%clk 01:28:16]} {[%emt 00:00:43]}
Nf6 {[%clk 01:18:35]} {[%emt 00:01:12]} 6. O-O {[%clk 01:26:56]} {[%emt
00:01:49]} d6 {[%clk 01:18:24]} {[%emt 00:00:42]} 7. h3 {[%clk 01:24:42]}
{[%emt 00:02:44]} Be7 {[%clk 01:17:46]} {[%emt 00:01:07]} 8. c3 {[%clk
01:22:53]} {[%emt 00:02:20]} O-O {[%clk 01:16:10]} {[%emt 00:02:07]} 9. Rd1
{[%clk 01:18:30]} {[%emt 00:04:52]} Qc7 {[%clk 00:58:18]} {[%emt 00:18:23]} 10.
Na3 {[%clk 01:04:19]} {[%emt 00:14:39]} Ne8 {[%clk 00:55:17]} {[%emt 00:03:31]}
11. d4 {[%clk 01:02:33]} {[%emt 00:02:17]} g6 {[%clk 00:52:13]} {[%emt
00:03:35]} 12. d5 {[%clk 00:58:46]} {[%emt 00:04:16]} Nd8 {[%clk 00:47:14]}
{[%emt 00:05:29]} 13. Bh6 {[%clk 00:55:42]} {[%emt 00:03:34]} Ng7 {[%clk
00:47:36]} {[%emt 00:00:08]} 14. b4 {[%clk 00:52:39]} {[%emt 00:03:34]} Bd7
{[%clk 00:42:57]} {[%emt 00:05:08]} 15. bxc5 {[%clk 00:45:16]} {[%emt
00:07:52]} Qxc5 {[%clk 00:42:56]} {[%emt 00:00:31]} 16. Qb2 {[%clk 00:45:16]}
{[%emt 00:00:30]} Rc8 {[%clk 00:42:10]} {[%emt 00:01:17]} 17. Rac1 {[%clk
00:44:49]} {[%emt 00:00:56]} b6 {[%clk 00:42:20]} {[%emt 00:00:21]} 18. Be3
{[%clk 00:42:23]} {[%emt 00:02:56]} Qa5 {[%clk 00:42:06]} {[%emt 00:00:43]} 19.
Bf1 {[%clk 00:36:16]} {[%emt 00:06:37]} Nb7 {[%clk 00:41:59]} {[%emt 00:00:38]}
20. Qb4 {[%clk 00:31:52]} {[%emt 00:04:54]} f5 {[%clk 00:33:27]} {[%emt
00:09:02]} 21. Nd2 {[%clk 00:25:02]} {[%emt 00:07:19]} Nh5 {[%emt 00:05:58]} 22.
exf5 {[%clk 00:21:06]} {[%emt 00:04:24]} gxf5 {[%clk 00:28:05]} {[%emt
00:00:27]} 23. Nac4 {[%clk 00:19:48]} {[%emt 00:01:48]} Qxb4 {[%clk 00:26:54]}
{[%emt 00:01:41]} 24. cxb4 {[%clk 00:20:09]} {[%emt 00:00:09]} f4 {[%clk
00:27:18]} {[%emt 00:00:06]} 25. gxf4 {[%clk 00:20:19]} {[%emt 00:00:20]} Nxf4
{[%clk 00:27:30]} {[%emt 00:00:19]} 26. Kh2 {[%clk 00:15:24]} {[%emt 00:05:24]}
Bf5 {[%clk 00:23:36]} {[%emt 00:04:24]} 27. Bxf4 {[%clk 00:12:49]} {[%emt
00:03:06]} exf4 {[%clk 00:24:00]} {[%emt 00:00:04]} 28. Nf3 {[%clk 00:10:46]}
{[%emt 00:02:32]} Bf6 {[%clk 00:23:37]} {[%emt 00:00:54]} 29. a4 {[%clk
00:10:08]} {[%emt 00:01:09]} Bd7 {[%clk 00:18:11]} {[%emt 00:05:56]} 30. b5
{[%clk 00:09:20]} {[%emt 00:01:18]} Rc5 {[%clk 00:16:19]} {[%emt 00:02:22]} 31.
Nd4 {[%clk 00:07:47]} {[%emt 00:02:03]} Bxd4 {[%clk 00:11:18]} {[%emt
00:05:31]} 32. Rxd4 {[%clk 00:07:48]} {[%emt 00:00:28]} Na5 {[%clk 00:11:23]}
{[%emt 00:00:26]} 33. Re1 {[%clk 00:06:14]} {[%emt 00:02:04]} Nxc4 {[%clk
00:11:40]} {[%emt 00:00:13]} 34. Bxc4 {[%clk 00:05:58]} {[%emt 00:00:46]} Rf7
{[%clk 00:07:37]} {[%emt 00:04:33]} 35. Bd3 {[%clk 00:04:52]} {[%emt 00:01:36]}
Rc3 {[%clk 00:06:44]} {[%emt 00:01:23]} 36. Re2 {[%clk 00:03:47]} {[%emt
00:01:34]} Ra3 {[%clk 00:06:23]} {[%emt 00:00:52]} 37. Rc2 {[%clk 00:04:00]}
{[%emt 00:00:14]} Rxd3 {[%clk 00:05:35]} {[%emt 00:01:20]} 38. Rxd3 {[%clk
00:04:15]} {[%emt 00:00:16]} Bf5 {[%clk 00:06:04]} {[%emt 00:00:01]} 39. Rdd2
{[%clk 00:04:24]} {[%emt 00:00:21]} Bxc2 {[%clk 00:06:28]} {[%emt 00:00:06]} 40.
Rxc2 {[%clk 00:04:47]} {[%emt 00:00:07]} 1/2-1/2

[Event "Schack-SM 2024: Veteran-SM 65+"]
[Site "Fortnox Arena, Hejaregatan 5, Vaxjo, Sweden"]
[Date "2024.07.03"]
[Round "5.3"]
[White "Bohlin, Jan"]
[Black "Malmdin, Nils-Ake"]
[Result "1/2-1/2"]
[TimeControl "90 minutes for 40 moves + 30 minutes for the rest of the game + 30 seconds per move from move one."]
[BlackTitle "FM"]
[WhiteElo "1854"]
[BlackElo "2064"]

1. c4 {[%clk 01:30:55]} {[%emt 00:00:05]} g6 {[%clk 01:30:13]} {[%emt
00:00:47]} 2. d4 {[%clk 01:30:40]} {[%emt 00:00:45]} Nf6 {[%clk 01:30:05]}
{[%emt 00:00:37]} 3. Nc3 {[%clk 01:30:55]} {[%emt 00:00:17]} Bg7 {[%clk
01:29:24]} {[%emt 00:01:09]} 4. e4 {[%clk 01:31:12]} {[%emt 00:00:14]} d6
{[%clk 01:29:44]} {[%emt 00:00:10]} 5. Be2 {[%clk 01:31:18]} {[%emt 00:00:24]}
O-O {[%clk 01:29:48]} {[%emt 00:00:26]} 6. Bg5 {[%clk 01:31:03]} {[%emt
00:00:45]} c5 {[%clk 01:29:50]} {[%emt 00:00:28]} 7. d5 {[%clk 01:31:21]}
{[%emt 00:00:13]} e6 {[%clk 01:28:31]} {[%emt 00:01:48]} 8. Qd2 {[%clk
01:30:48]} {[%emt 00:01:04]} exd5 {[%clk 01:28:31]} {[%emt 00:00:31]} 9. exd5
{[%clk 01:31:10]} {[%emt 00:00:08]} Re8 {[%clk 01:28:28]} {[%emt 00:00:32]} 10.
Nf3 {[%clk 01:31:18]} {[%emt 00:00:22]} a6 {[%clk 01:24:43]} {[%emt 00:04:15]}
11. a4 {[%clk 01:28:43]} {[%emt 00:03:05]} Bg4 {[%clk 01:21:01]} {[%emt
00:04:11]} 12. O-O {[%clk 01:28:27]} {[%emt 00:00:46]} Qc7 {[%clk 01:16:23]}
{[%emt 00:05:09]} 13. Rfe1 {[%clk 01:26:22]} {[%emt 00:02:35]} Nbd7 {[%clk
01:11:56]} {[%emt 00:04:56]} 14. h3 {[%clk 01:20:15]} {[%emt 00:06:38]} Bxf3
{[%clk 01:08:12]} {[%emt 00:04:14]} 15. Bxf3 {[%clk 01:20:32]} {[%emt
00:00:14]} Ne5 {[%clk 01:04:15]} {[%emt 00:04:25]} 16. Be2 {[%clk 01:17:14]}
{[%emt 00:03:49]} Ned7 {[%clk 01:01:01]} {[%emt 00:03:44]} 17. Bd3 {[%clk
01:05:06]} {[%emt 00:12:38]} Nh5 {[%clk 00:47:01]} {[%emt 00:14:30]} 18. Rxe8+
{[%clk 00:55:42]} {[%emt 00:09:55]} Rxe8 {[%clk 00:47:19]} {[%emt 00:00:11]} 19.
Re1 {[%clk 00:54:58]} {[%emt 00:01:15]} Qb8 {[%clk 00:46:11]} {[%emt 00:01:36]}
20. Rxe8+ {[%clk 00:42:02]} {[%emt 00:13:27]} Qxe8 {[%clk 00:46:29]} {[%emt
00:00:11]} 21. g4 {[%clk 00:40:45]} {[%emt 00:01:49]} Nhf6 {[%clk 00:46:01]}
{[%emt 00:00:57]} 22. Qe2 {[%clk 00:34:34]} {[%emt 00:06:41]} Kf8 {[%clk
00:39:53]} {[%emt 00:06:37]} 23. Qxe8+ {[%clk 00:33:49]} {[%emt 00:01:16]} Nxe8
{[%clk 00:39:25]} {[%emt 00:00:56]} 24. Bd2 {[%clk 00:30:55]} {[%emt 00:03:27]}
Bd4 {[%emt 00:08:53]} 1/2-1/2

[Event "Schack-SM 2024: Veteran-SM 65+"]
[Site "Fortnox Arena, Hejaregatan 5, Vaxjo, Sweden"]
[Date "2024.07.03"]
[Round "5.4"]
[White "Gillefalk, Bjorn"]
[Black "Sigeman, Johan"]
[Result "1/2-1/2"]
[TimeControl "90 minutes for 40 moves + 30 minutes for the rest of the game + 30 seconds per move from move one."]
[WhiteElo "2063"]
[BlackElo "2049"]

1. Nf3 {[%clk 01:30:56]} {[%emt 00:00:03]} Nf6 {[%clk 01:30:35]} {[%emt
00:00:25]} 2. g3 {[%clk 01:31:16]} {[%emt 00:00:11]} d5 {[%clk 01:26:19]}
{[%emt 00:04:46]} 3. Bg2 {[%clk 01:31:25]} {[%emt 00:00:21]} c5 {[%clk
01:26:20]} {[%emt 00:00:29]} 4. O-O {[%clk 01:28:23]} {[%emt 00:03:32]} Nc6
{[%clk 01:25:12]} {[%emt 00:01:38]} 5. d4 {[%clk 01:22:50]} {[%emt 00:06:03]}
e6 {[%clk 01:23:59]} {[%emt 00:01:42]} 6. c4 {[%clk 01:09:35]} {[%emt
00:13:46]} dxc4 {[%clk 01:16:39]} {[%emt 00:07:50]} 7. Qa4 {[%clk 01:04:48]}
{[%emt 00:05:17]} Bd7 {[%clk 01:16:44]} {[%emt 00:00:24]} 8. dxc5 {[%clk
00:56:40]} {[%emt 00:08:39]} Na5 {[%clk 01:06:10]} {[%emt 00:11:04]} 9. Qc2
{[%clk 00:54:39]} {[%emt 00:02:30]} Rc8 {[%clk 00:55:23]} {[%emt 00:11:17]} 10.
Ne5 {[%clk 00:37:43]} {[%emt 00:17:27]} Rxc5 {[%clk 00:46:33]} {[%emt
00:09:20]} 11. Nxd7 {[%clk 00:36:43]} {[%emt 00:01:30]} Qxd7 {[%clk 00:36:32]}
{[%emt 00:10:31]} 12. Be3 {[%clk 00:29:25]} {[%emt 00:07:47]} Rc8 {[%clk
00:35:36]} {[%emt 00:01:27]} 13. Bxa7 {[%clk 00:28:51]} {[%emt 00:01:05]} Be7
{[%clk 00:28:12]} {[%emt 00:07:53]} 14. Rd1 {[%clk 00:24:52]} {[%emt 00:04:29]}
Qb5 {[%clk 00:27:42]} {[%emt 00:00:59]} 15. Nc3 {[%clk 00:21:46]} {[%emt
00:03:37]} Qb4 {[%clk 00:27:01]} {[%emt 00:01:11]} 1/2-1/2

[Event "Schack-SM 2024: Veteran-SM 65+"]
[Site "Fortnox Arena, Hejaregatan 5, Vaxjo, Sweden"]
[Date "2024.07.03"]
[Round "5.5"]
[White "Andersson, Sven-Olof"]
[Black "Lagerborg, Krister"]
[Result "0-1"]
[TimeControl "90 minutes for 40 moves + 30 minutes for the rest of the game + 30 seconds per move from move one."]
[WhiteElo "1884"]
[BlackElo "2091"]

1. d4 {[%clk 01:30:54]} {[%emt 00:00:05]} Nf6 {[%clk 01:30:53]} {[%emt
00:00:07]} 2. Nf3 {[%clk 01:31:19]} g6 {[%clk 01:31:17]} {[%emt 00:00:11]} 3.
g3 {[%clk 01:31:39]} {[%emt 00:00:11]} Bg7 {[%clk 01:31:30]} {[%emt 00:00:16]}
4. Bg2 {[%clk 01:32:02]} {[%emt 00:00:07]} O-O {[%clk 01:31:57]} {[%emt
00:00:04]} 5. O-O {[%clk 01:32:08]} {[%emt 00:00:24]} d6 {[%clk 01:32:13]}
{[%emt 00:00:13]} 6. b3 {[%clk 01:31:46]} {[%emt 00:00:52]} c6 {[%clk
01:31:26]} {[%emt 00:01:17]} 7. Bb2 {[%clk 01:31:43]} {[%emt 00:00:34]} b5
{[%clk 01:29:32]} {[%emt 00:02:24]} 8. Nbd2 {[%clk 01:31:24]} {[%emt 00:00:47]}
Nbd7 {[%clk 01:28:53]} {[%emt 00:01:11]} 9. c4 {[%clk 01:28:36]} {[%emt
00:03:18]} Rb8 {[%clk 01:28:36]} {[%emt 00:00:46]} 10. cxb5 {[%clk 01:20:39]}
{[%emt 00:08:28]} cxb5 {[%clk 01:28:44]} {[%emt 00:00:22]} 11. e4 {[%clk
01:19:22]} {[%emt 00:01:46]} Bb7 {[%clk 01:22:41]} {[%emt 00:06:33]} 12. Re1
{[%clk 01:18:28]} {[%emt 00:01:23]} Nb6 {[%clk 01:19:06]} {[%emt 00:04:07]} 13.
Qe2 {[%clk 01:15:32]} {[%emt 00:03:25]} a6 {[%clk 01:15:44]} {[%emt 00:03:52]}
14. Rac1 {[%clk 01:11:30]} {[%emt 00:04:32]} Rc8 {[%clk 01:12:51]} {[%emt
00:03:22]} 15. Rxc8 {[%clk 01:01:10]} {[%emt 00:10:50]} Qxc8 {[%clk 01:12:51]}
{[%emt 00:00:31]} 16. Rc1 {[%emt 00:00:37]} Qd7 {[%clk 01:12:08]} {[%emt
00:01:05]} 17. d5 {[%clk 00:53:14]} {[%emt 00:08:28]} Rc8 {[%clk 01:11:10]}
{[%emt 00:01:28]} 18. Qf1 {[%clk 00:42:53]} {[%emt 00:10:50]} Nxe4 {[%clk
01:10:20]} {[%emt 00:01:21]} 19. Bxg7 {[%clk 00:40:57]} {[%emt 00:02:25]} Nxd2
{[%clk 01:10:34]} {[%emt 00:00:17]} 20. Rxc8+ {[%clk 00:31:07]} {[%emt
00:10:20]} Qxc8 {[%clk 01:09:50]} {[%emt 00:01:14]} 21. Qa1 {[%clk 00:31:04]}
{[%emt 00:00:32]} Nxf3+ {[%clk 01:08:10]} {[%emt 00:02:11]} 22. Bxf3 {[%clk
00:31:25]} {[%emt 00:00:08]} Bxd5 {[%clk 01:05:01]} {[%emt 00:03:39]} 23. Bxd5
{[%clk 00:30:53]} {[%emt 00:01:02]} Nxd5 {[%clk 01:05:20]} {[%emt 00:00:11]} 24.
Qd4 {[%clk 00:30:20]} {[%emt 00:01:03]} Qc5 {[%clk 01:04:00]} {[%emt 00:01:50]}
25. Qb2 {[%clk 00:30:26]} {[%emt 00:00:24]} f6 {[%clk 01:01:55]} {[%emt
00:02:35]} 26. Bh6 {[%clk 00:30:39]} {[%emt 00:00:17]} Kf7 {[%clk 01:00:52]}
{[%emt 00:01:33]} 27. h4 {[%clk 00:29:01]} {[%emt 00:02:08]} a5 {[%clk
00:58:08]} {[%emt 00:03:14]} 28. h5 {[%clk 00:22:16]} {[%emt 00:07:15]} b4
{[%clk 00:56:47]} {[%emt 00:01:51]} 29. Qe2 {[%clk 00:18:52]} {[%emt 00:03:52]}
Nc3 {[%clk 00:51:58]} {[%emt 00:05:21]} 30. Qa6 {[%clk 00:17:00]} {[%emt
00:02:21]} Qxh5 {[%clk 00:51:29]} {[%emt 00:01:00]} 31. Be3 {[%clk 00:14:50]}
{[%emt 00:02:32]} Qe5 {[%clk 00:44:36]} {[%emt 00:07:30]} 32. Qc8 {[%clk
00:11:17]} {[%emt 00:04:04]} Kg7 {[%clk 00:40:38]} {[%emt 00:04:28]} 33. Bh6+
{[%clk 00:01:54]} {[%emt 00:09:54]} Kxh6 {[%clk 00:40:37]} {[%emt 00:00:30]} 34.
Qf8+ {[%clk 00:02:14]} {[%emt 00:00:09]} Kh5 {[%clk 00:41:02]} {[%emt
00:00:06]} 35. Qg7 {[%clk 00:01:39]} {[%emt 00:01:06]} Qe1+ {[%clk 00:40:42]}
{[%emt 00:00:49]} 36. Kg2 {[%clk 00:01:46]} {[%emt 00:00:23]} Qe4+ {[%clk
00:40:43]} {[%emt 00:00:29]} 37. Kh2 {[%clk 00:01:11]} {[%emt 00:01:05]} h6
{[%clk 00:39:32]} {[%emt 00:01:41]} 38. g4+ {[%clk 00:00:59]} {[%emt 00:00:42]}
Kxg4 {[%clk 00:39:08]} {[%emt 00:00:54]} 0-1

[Event "Schack-SM 2024: Veteran-SM 65+"]
[Site "Fortnox Arena, Hejaregatan 5, Vaxjo, Sweden"]
[Date "2024.07.03"]
[Round "5.6"]
[White "Wengholm, Anders"]
[Black "Dolata, Henryk"]
[Result "0-1"]
[TimeControl "90 minutes for 40 moves + 30 minutes for the rest of the game + 30 seconds per move from move one."]
[WhiteTitle "CM"]
[WhiteElo "2180"]
[BlackElo "1989"]

1. Nf3 {[%clk 01:29:45]} {[%emt 00:01:14]} d5 {[%clk 01:30:29]} {[%emt
00:00:31]} 2. d4 {[%clk 01:28:01]} {[%emt 00:02:15]} e6 {[%clk 01:30:26]}
{[%emt 00:00:32]} 3. g3 {[%clk 01:27:08]} {[%emt 00:01:24]} Nf6 {[%clk
01:30:01]} {[%emt 00:00:55]} 4. Bg2 {[%clk 01:27:24]} {[%emt 00:00:13]} Be7
{[%clk 01:28:21]} {[%emt 00:02:11]} 5. O-O {[%clk 01:27:33]} {[%emt 00:00:21]}
O-O {[%clk 01:28:25]} {[%emt 00:00:26]} 6. c4 {[%clk 01:27:48]} {[%emt
00:00:15]} dxc4 {[%clk 01:27:41]} {[%emt 00:01:13]} 7. Qc2 {[%clk 01:28:06]}
{[%emt 00:00:12]} a6 {[%clk 01:26:56]} {[%emt 00:01:15]} 8. a4 {[%clk
01:27:59]} {[%emt 00:00:38]} Bd7 {[%clk 01:25:17]} {[%emt 00:02:09]} 9. Rd1
{[%clk 01:26:58]} {[%emt 00:01:31]} Bc6 {[%clk 01:22:27]} {[%emt 00:03:20]} 10.
Nc3 {[%clk 01:25:59]} {[%emt 00:01:28]} a5 {[%clk 01:14:26]} {[%emt 00:08:32]}
11. e4 {[%clk 01:24:49]} {[%emt 00:01:39]} b6 {[%clk 01:05:14]} {[%emt
00:09:42]} 12. d5 {[%clk 01:23:03]} {[%emt 00:02:17]} exd5 {[%clk 01:04:40]}
{[%emt 00:01:04]} 13. e5 {[%clk 01:23:22]} {[%emt 00:00:11]} Ne8 {[%clk
01:04:15]} {[%emt 00:00:54]} 14. Nxd5 {[%clk 01:19:48]} {[%emt 00:04:05]} Bxd5
{[%clk 01:03:53]} {[%emt 00:00:52]} 15. Rxd5 {[%clk 01:16:06]} {[%emt
00:04:11]} Qxd5 {[%clk 00:57:32]} {[%emt 00:06:51]} 16. Ng5 {[%clk 01:15:42]}
{[%emt 00:00:54]} Qd3 {[%clk 00:57:36]} {[%emt 00:00:26]} 17. Qxd3 {[%clk
01:16:02]} {[%emt 00:00:10]} cxd3 {[%clk 00:57:56]} {[%emt 00:00:10]} 18. Bxa8
{[%clk 01:16:27]} {[%emt 00:00:06]} c6 {[%clk 00:56:57]} {[%emt 00:01:28]} 19.
Be3 {[%clk 01:10:27]} {[%emt 00:06:30]} Nc7 {[%clk 00:52:06]} {[%emt 00:05:21]}
20. Bb7 {[%clk 01:10:52]} {[%emt 00:00:06]} Nd5 {[%clk 00:51:24]} {[%emt
00:01:11]} 21. Nf3 {[%clk 01:09:18]} {[%emt 00:02:04]} Nxe3 {[%clk 00:46:03]}
{[%emt 00:05:52]} 22. fxe3 {[%clk 01:08:59]} {[%emt 00:00:49]} Rd8 {[%clk
00:34:32]} {[%emt 00:12:00]} 23. Kf2 {[%clk 01:08:37]} {[%emt 00:00:53]} Bc5
{[%clk 00:32:58]} {[%emt 00:02:04]} 24. Rd1 {[%clk 01:08:16]} {[%emt 00:00:50]}
Kf8 {[%clk 00:32:19]} {[%emt 00:01:09]} 25. Nd4 {[%clk 00:53:54]} {[%emt
00:14:52]} Bxd4 {[%clk 00:29:54]} {[%emt 00:02:56]} 26. Rxd3 {[%clk 00:54:02]}
{[%emt 00:00:22]} Bxe3+ {[%clk 00:29:58]} {[%emt 00:00:25]} 27. Rxe3 {[%clk
00:54:07]} {[%emt 00:00:25]} Rd2+ {[%clk 00:29:51]} {[%emt 00:00:37]} 28. Kf3
{[%clk 00:54:13]} {[%emt 00:00:24]} Rxb2 {[%clk 00:28:07]} {[%emt 00:02:14]} 29.
e6 {[%clk 00:53:01]} {[%emt 00:01:42]} fxe6 {[%clk 00:26:19]} {[%emt 00:02:19]}
30. Bc8 {[%clk 00:53:21]} {[%emt 00:00:09]} Rxh2 {[%clk 00:24:11]} {[%emt
00:02:38]} 31. Rb3 {[%clk 00:53:07]} {[%emt 00:00:44]} b5 {[%clk 00:21:55]}
{[%emt 00:02:47]} 32. axb5 {[%clk 00:52:37]} {[%emt 00:01:00]} cxb5 {[%clk
00:19:22]} {[%emt 00:03:03]} 33. Rxb5 {[%clk 00:51:30]} {[%emt 00:01:38]} Nc6
{[%clk 00:19:38]} {[%emt 00:00:13]} 34. Rc5 {[%clk 00:24:49]} {[%emt 00:27:10]}
Rc2 {[%clk 00:18:18]} {[%emt 00:01:51]} 0-1

[Event "Schack-SM 2024: Veteran-SM 65+"]
[Site "Fortnox Arena, Hejaregatan 5, Vaxjo, Sweden"]
[Date "2024.07.03"]
[Round "5.7"]
[White "Adler, Bo"]
[Black "Alquist, Erik"]
[Result "1/2-1/2"]
[TimeControl "90 minutes for 40 moves + 30 minutes for the rest of the game + 30 seconds per move from move one."]
[WhiteElo "2108"]
[BlackElo "1968"]

1. d4 {[%clk 01:30:47]} {[%emt 00:00:13]} Nf6 {[%clk 01:30:54]} {[%emt
00:00:06]} 2. c4 {[%clk 01:31:10]} {[%emt 00:00:06]} g6 {[%clk 01:31:04]}
{[%emt 00:00:21]} 3. Nc3 {[%clk 01:30:53]} {[%emt 00:00:47]} Bg7 {[%clk
01:31:01]} {[%emt 00:00:32]} 4. e4 {[%clk 01:31:09]} {[%emt 00:00:14]} d6
{[%clk 01:31:26]} {[%emt 00:00:05]} 5. Be2 {[%clk 01:27:00]} {[%emt 00:04:39]}
O-O {[%clk 01:31:43]} {[%emt 00:00:13]} 6. f4 {[%clk 01:27:21]} {[%emt
00:00:10]} c5 {[%clk 01:31:50]} {[%emt 00:00:23]} 7. d5 {[%clk 01:27:00]}
{[%emt 00:00:51]} e6 {[%clk 01:32:01]} {[%emt 00:00:19]} 8. Nf3 {[%clk
01:25:58]} {[%emt 00:01:32]} exd5 {[%clk 01:32:19]} {[%emt 00:00:12]} 9. cxd5
{[%clk 01:18:03]} {[%emt 00:08:25]} Nbd7 {[%clk 01:32:06]} {[%emt 00:00:43]} 10.
O-O {[%clk 01:15:56]} {[%emt 00:02:37]} Re8 {[%clk 01:29:57]} {[%emt 00:02:38]}
11. Nd2 {[%clk 01:04:06]} {[%emt 00:12:20]} c4 {[%clk 01:30:00]} {[%emt
00:00:28]} 12. Kh1 {[%clk 01:01:13]} {[%emt 00:03:22]} Nc5 {[%clk 01:29:43]}
{[%emt 00:00:48]} 13. e5 {[%clk 00:52:29]} {[%emt 00:09:14]} dxe5 {[%clk
01:26:36]} {[%emt 00:03:37]} 14. Nxc4 {[%clk 00:48:34]} {[%emt 00:04:25]} exf4
{[%clk 01:20:44]} {[%emt 00:06:22]} 15. Bxf4 {[%clk 00:48:03]} {[%emt
00:01:00]} Nce4 {[%clk 01:08:42]} {[%emt 00:12:32]} 16. Bf3 {[%clk 00:39:37]}
{[%emt 00:08:56]} Nxc3 {[%clk 01:02:55]} {[%emt 00:06:18]} 17. bxc3 {[%clk
00:39:49]} {[%emt 00:00:18]} Ne4 {[%clk 01:03:15]} {[%emt 00:00:08]} 18. Bxe4
{[%clk 00:36:43]} {[%emt 00:03:37]} Rxe4 {[%clk 01:03:36]} {[%emt 00:00:09]} 19.
Nd2 {[%clk 00:26:08]} {[%emt 00:11:04]} Rxf4 {[%clk 01:01:09]} {[%emt
00:02:58]} 20. Rxf4 {[%clk 00:26:32]} {[%emt 00:00:07]} Qxd5 {[%clk 01:01:30]}
{[%emt 00:00:09]} 21. Ne4 {[%clk 00:23:09]} {[%emt 00:03:53]} Be6 {[%clk
00:56:40]} {[%emt 00:05:21]} 22. Qxd5 {[%clk 00:22:17]} {[%emt 00:01:21]} Bxd5
{[%clk 00:57:07]} {[%emt 00:00:02]} 23. Nf6+ {[%clk 00:22:41]} {[%emt
00:00:06]} Bxf6 {[%clk 00:57:28]} {[%emt 00:00:09]} 24. Rxf6 {[%clk 00:23:10]}
{[%emt 00:00:01]} Rc8 {[%clk 00:57:17]} {[%emt 00:00:42]} 25. Rd6 {[%clk
00:23:02]} {[%emt 00:00:37]} Bc6 {[%clk 00:55:18]} {[%emt 00:02:29]} 26. Re1
{[%clk 00:18:05]} {[%emt 00:05:27]} Kf8 {[%clk 00:55:20]} {[%emt 00:00:28]} 27.
Kg1 {[%clk 00:18:28]} {[%emt 00:00:07]} Rc7 {[%clk 00:52:06]} {[%emt 00:03:45]}
28. Rd8+ {[%clk 00:14:28]} {[%emt 00:04:30]} Kg7 {[%clk 00:52:30]} {[%emt
00:00:06]} 29. Kf2 {[%clk 00:14:46]} {[%emt 00:00:11]} h5 {[%clk 00:50:46]}
{[%emt 00:02:15]} 30. h4 {[%clk 00:10:34]} {[%emt 00:04:41]} Bb5 {[%clk
00:46:24]} {[%emt 00:04:52]} 31. Re3 {[%clk 00:10:31]} {[%emt 00:00:34]} Rd7
{[%clk 00:42:34]} {[%emt 00:04:19]} 32. Rxd7 {[%clk 00:10:42]} {[%emt
00:00:19]} Bxd7 {[%clk 00:43:04]} 33. Re7 {[%clk 00:11:00]} {[%emt 00:00:12]}
Bc6 {[%clk 00:43:32]} {[%emt 00:00:02]} 34. g3 {[%clk 00:11:15]} {[%emt
00:00:14]} Kf6 {[%clk 00:43:52]} {[%emt 00:00:11]} 35. Rc7 {[%clk 00:08:17]}
{[%emt 00:03:26]} Ke6 {[%clk 00:42:39]} {[%emt 00:01:44]} 36. Ke3 {[%clk
00:08:36]} {[%emt 00:00:11]} Bg2 {[%clk 00:37:52]} {[%emt 00:05:17]} 37. Kd4
{[%clk 00:06:57]} {[%emt 00:02:10]} Bh1 {[%clk 00:37:35]} {[%emt 00:00:47]} 38.
a4 {[%clk 00:06:03]} {[%emt 00:01:24]} Bg2 {[%clk 00:33:09]} {[%emt 00:04:55]}
39. a5 {[%clk 00:06:25]} {[%emt 00:00:08]} a6 {[%clk 00:33:35]} {[%emt
00:00:04]} 40. Rc8 {[%clk 00:02:16]} {[%emt 00:04:39]} Bh1 {[%clk 00:30:43]}
{[%emt 00:03:21]} 41. Rc5 {[%clk 00:28:48]} {[%emt 00:03:59]} Bg2 {[%clk
00:57:48]} {[%emt 00:03:25]} 42. Re5+ {[%clk 00:24:20]} {[%emt 00:04:58]} Kf6
{[%clk 00:58:03]} {[%emt 00:00:16]} 43. Re2 {[%clk 00:22:55]} {[%emt 00:01:54]}
Bh1 {[%clk 00:54:41]} {[%emt 00:03:52]} 44. Re5 {[%clk 00:19:10]} {[%emt
00:04:16]} Bg2 {[%emt 00:02:44]} 45. Re8 {[%clk 00:18:08]} Kf5 {[%clk
00:53:19]} {[%emt 00:01:09]} 46. Ke3 {[%clk 00:18:08]} {[%emt 00:00:29]} Bc6
{[%clk 00:52:37]} {[%emt 00:01:13]} 47. Rd8 {[%clk 00:18:16]} {[%emt 00:00:22]}
Ke5 {[%clk 00:51:12]} {[%emt 00:01:55]} 48. Rf8 {[%clk 00:18:04]} {[%emt
00:00:41]} Ke6 {[%clk 00:43:33]} {[%emt 00:08:10]} 49. Kf4 {[%clk 00:18:04]}
{[%emt 00:00:30]} Ke7 {[%clk 00:43:40]} {[%emt 00:00:23]} 50. Rb8 {[%clk
00:17:00]} {[%emt 00:01:33]} Kf6 {[%clk 00:41:26]} {[%emt 00:02:45]} 51. Rd8
{[%clk 00:17:12]} {[%emt 00:00:18]} Ke7 {[%clk 00:41:37]} {[%emt 00:00:19]} 52.
Rd4 {[%clk 00:17:27]} {[%emt 00:00:15]} Kf6 {[%clk 00:41:55]} {[%emt 00:00:12]}
53. Rd6+ {[%clk 00:17:47]} {[%emt 00:00:10]} Ke7 {[%clk 00:42:16]} {[%emt
00:00:09]} 54. Ke5 {[%clk 00:18:04]} {[%emt 00:00:13]} Bg2 {[%clk 00:41:46]}
{[%emt 00:01:00]} 55. c4 {[%clk 00:17:54]} {[%emt 00:00:41]} Bh1 {[%clk
00:41:44]} {[%emt 00:00:32]} 56. c5 {[%clk 00:18:06]} {[%emt 00:00:17]} Bg2
{[%clk 00:37:58]} {[%emt 00:04:15]} 57. Kf4 {[%clk 00:18:29]} {[%emt 00:00:08]}
f6 {[%clk 00:38:06]} {[%emt 00:00:22]} 58. g4 {[%clk 00:17:44]} {[%emt
00:01:15]} hxg4 {[%clk 00:38:09]} {[%emt 00:00:27]} 59. Kxg4 {[%clk 00:18:08]}
{[%emt 00:00:07]} Bc6 {[%clk 00:31:26]} {[%emt 00:07:13]} 60. h5 {[%clk
00:18:07]} {[%emt 00:00:30]} gxh5+ {[%clk 00:31:51]} {[%emt 00:00:05]} 61. Kxh5
{[%clk 00:17:42]} {[%emt 00:00:55]} Be8+ {[%clk 00:26:52]} {[%emt 00:05:29]} 62.
Kh6 {[%clk 00:16:42]} {[%emt 00:01:31]} Kf7 {[%clk 00:26:29]} {[%emt 00:00:53]}
63. Rd8 {[%clk 00:15:35]} {[%emt 00:01:37]} Bc6 {[%clk 00:24:04]} {[%emt
00:02:54]} 64. Kh5 {[%clk 00:13:59]} 1/2-1/2